bitfinex-derivatives/quotes_SOLF0:USTF0_20260121
["timestamp","ask_amount","ask_price","bid_price","bid_amount"]
[1769003271388,2.17242016,127.04,127.0,3.24747237]
[1769003274494,9.26422016,127.04,127.0,3.24747237]
[1769003274694,9.26422016,127.04,126.99,3.30339474]
[1769003276991,2.11884135,127.03,126.99,3.30339474]
[1769003279885,2.11884135,127.03,126.99,0.05592237]
[1769003280886,7.0929,127.02,126.99,0.05592237]
[1769003282096,9.21234135,127.01,126.96,9.74024238]
[1769003282488,9.21464135,126.97,126.92,14.60861595]
[1769003282690,2.11884135,126.97,126.92,3.16017878]
[1769003283199,0.06046582,126.96,126.92,3.16017878]
[1769003283396,0.06046582,126.96,126.93,0.05117123]
[1769003283691,2.11884135,126.95,126.9,3.16017878]
[1769003285392,0.06046582,126.96,126.92,3.16017878]
[1769003291291,7.0951,126.99,126.92,3.16017878]
[1769003292293,0.05110847,126.97,126.94,0.05034411]
[1769003292600,0.05110847,126.97,126.94,3.21052289]
[1769003292800,7.0938,127.01,126.94,3.21052289]
[1769003293000,2.11884135,127.02,126.94,3.16017878]
[1769003293794,0.05101164,126.99,126.96,3.16017878]
[1769003294902,0.05101164,126.99,126.96,3.21657307]
[1769003295203,0.05101164,126.99,126.96,0.05639429]
[1769003295899,0.05101164,126.99,126.92,3.03851966]
[1769003295900,7.0952,126.98,126.92,3.03851966]
[1769003296290,112.45984135,127.02,126.94,3.03851966]
[1769003297199,0.05090612,126.99,126.94,3.03851966]
[1769003297902,7.14550612,126.99,126.94,3.03851966]
[1769003300699,7.14550612,126.99,126.95,0.05615166]
[1769003301506,7.14550612,126.99,126.95,3.09467132]
[1769003302304,0.05090612,126.99,126.95,5.21351267]
[1769003302499,112.44024135,127.04,126.96,3.03851966]
[1769003303401,136.08024135,127.04,126.96,3.03851966]
[1769003303608,0.05331152,127.01,126.96,3.03851966]
[1769003304105,7.14681152,127.01,126.96,3.03851966]
[1769003305511,7.14681152,127.01,126.93,12.25476101]
[1769003305512,0.05331152,127.01,126.93,12.25476101]
[1769003305713,25.75884135,127.02,126.94,3.03851966]
[1769003306003,0.05484645,126.98,126.94,3.03851966]
[1769003306804,7.0938,127.01,126.95,3.03851966]
[1769003307010,7.0938,127.01,126.95,5.15736101]
[1769003307910,0.05435961,126.99,126.96,3.03851966]
[1769003308108,133.9459,127.06,126.98,3.03851966]
[1769003308109,2.11884135,127.05,126.98,3.03851966]
[1769003308413,23.64,127.06,126.98,3.03851966]
[1769003308907,7.092,127.04,126.98,3.03851966]
[1769003309105,0.05690851,127.03,127.01,0.05881385]
[1769003311904,7.0929,127.02,126.96,7.0958]
[1769003312106,2.11884135,127.02,126.96,10.13431966]
[1769003312309,2.11884135,127.02,126.97,3.03851966]
[1769003312610,9.21174135,127.02,126.95,3.03851966]
[1769003312804,2.11884135,127.02,126.95,3.03851966]
[1769003313206,0.05252178,127.0,126.95,3.03851966]
[1769003314611,7.14662178,127.0,126.95,3.03851966]
[1769003314913,0.05252178,127.0,126.95,3.03851966]
[1769003315605,7.0946,126.99,126.95,3.03851966]
[1769003317022,7.14652178,127.0,126.95,3.03851966]
[1769003317711,2.17136313,127.0,126.93,3.03851966]
[1769003318911,9.26586313,127.0,126.93,3.03851966]
[1769003319317,7.0946,126.99,126.93,3.03851966]
[1769003319512,112.47464135,127.0,126.91,10.13751966]
[1769003319714,0.05001513,126.97,126.91,3.03851966]
[1769003320919,7.0964,126.96,126.91,3.03851966]
[1769003321110,0.05001513,126.97,126.87,9.78409917]
[1769003321316,25.75884135,126.95,126.87,5.15736101]
[1769003321510,2.11884135,126.95,126.87,5.15736101]
[1769003321908,2.11884135,126.95,126.87,2.11884135]
[1769003322114,7.0985,126.92,126.86,2.11884135]
[1769003322310,7.0985,126.92,126.87,3.03851966]
[1769003322625,2.11884135,126.95,126.87,3.03851966]
[1769003322816,2.11884135,126.95,126.88,5.15736101]
[1769003323315,2.11884135,126.95,126.88,3.03851966]
[1769003323614,2.11884135,126.93,126.85,3.03851966]
[1769003324516,2.11884135,126.91,126.85,3.03851966]
[1769003324717,9.21794135,126.91,126.85,3.03851966]
[1769003325020,2.11884135,126.91,126.85,3.03851966]
[1769003325209,110.4326,126.91,126.81,7.1042]
[1769003325409,2.11884135,126.89,126.81,9.22304135]
[1769003325613,2.11884135,126.89,126.81,12.38467967]
[1769003326015,2.11884135,126.89,126.82,3.16163832]
[1769003326616,2.11884135,126.87,126.8,3.16163832]
[1769003327116,9.22034135,126.87,126.8,3.16163832]
[1769003328720,2.11884135,126.89,126.82,3.16163832]
[1769003329916,7.1008,126.88,126.82,3.16163832]
[1769003330124,2.11884135,126.9,126.83,3.16163832]
[1769003331214,110.4186,126.93,126.83,3.16163832]
[1769003331420,2.11884135,126.91,126.83,3.16163832]
[1769003332419,7.0997,126.9,126.83,3.16163832]
[1769003332619,2.11884135,126.91,126.83,3.16163832]
[1769003333039,7.1008,126.88,126.83,3.16163832]
[1769003335722,7.1003,126.89,126.83,3.16163832]
[1769003336627,7.1016,126.87,126.83,3.16163832]
[1769003336822,112.56954135,126.89,126.81,3.16163832]
[1769003337641,0.06018496,126.86,126.84,0.05941036]
[1769003338933,7.16198496,126.86,126.84,0.05941036]
[1769003339333,7.16198496,126.86,126.81,3.16163832]
[1769003339935,7.16198496,126.86,126.79,9.22960341]
[1769003339936,2.18408837,126.86,126.79,5.46190346]
[1769003340430,2.18408837,126.86,126.79,3.33800005]
[1769003340431,112.66088837,126.86,126.79,3.33800005]
[1769003340626,2.12390341,126.84,126.77,3.33800005]
[1769003340831,2.12390341,126.84,126.75,3.33800005]
[1769003341032,2.12390341,126.83,126.76,3.33800005]
[1769003341630,110.4845,126.85,126.76,3.33800005]
[1769003341833,110.4768,126.86,126.78,3.33800005]
[1769003342027,2.12390341,126.86,126.78,3.33800005]
[1769003342433,7.1031,126.84,126.78,5.46190346]
[1769003342631,7.1031,126.84,126.79,3.33800005]
[1769003342834,2.12390341,126.86,126.79,3.33800005]
[1769003343230,7.1025,126.85,126.79,3.33800005]
[1769003343431,110.4447,126.9,126.81,3.33800005]
[1769003343731,2.12390341,126.87,126.79,3.33800005]
[1769003343936,2.12390341,126.87,126.8,3.33800005]
[1769003344438,7.102,126.86,126.8,3.33800005]
[1769003346436,7.1011,126.88,126.82,3.33800005]
[1769003347040,7.1014,126.87,126.82,3.33800005]
[1769003348435,112.57490341,126.89,126.84,3.33800005]
[1769003348436,7.1003,126.89,126.84,3.33800005]
[1769003349043,7.0994,126.91,126.86,3.33800005]
[1769003349747,7.0996,126.9,126.86,3.33800005]
[1769003350245,112.53920341,126.93,126.86,3.33800005]
[1769003350246,7.0989,126.92,126.86,3.33800005]
[1769003350642,2.12390341,126.93,126.86,3.33800005]
[1769003350843,7.0991,126.91,126.86,3.33800005]
[1769003351939,7.0982,126.93,126.86,5.46190346]
[1769003352134,7.0982,126.93,126.87,3.33800005]
[1769003352339,2.12390341,126.94,126.87,3.33800005]
[1769003352536,2.12390341,126.94,126.85,5.46190346]
[1769003352946,2.12390341,126.94,126.86,3.33800005]
[1769003353648,2.12390341,126.92,126.86,3.33800005]
[1769003354148,7.0991,126.91,126.86,3.33800005]
[1769003354347,2.12390341,126.92,126.86,3.33800005]
[1769003355051,2.12390341,126.94,126.87,3.33800005]
[1769003355348,2.12390341,126.96,126.88,3.33800005]
[1769003355538,2.12390341,126.98,126.91,3.6180639]
[1769003356144,7.0957,126.97,126.91,3.6180639]
[1769003362573,110.3481,127.01,126.92,3.6180639]
[1769003363571,7.0957,126.97,126.9,3.6180639]
[1769003363962,110.3614,126.99,126.9,3.6180639]
[1769003364676,7.0963,126.96,126.9,10.7176639]
[1769003365460,7.0957,126.98,126.9,10.7176639]
[1769003366161,7.0957,126.97,126.9,10.7176639]
[1769003369378,133.9881,127.01,126.92,3.6180639]
[1769003370872,7.0952,126.98,126.92,10.7165639]
[1769003372362,0.05106846,126.96,126.92,10.7165639]
[1769003375973,0.05106846,126.96,126.93,0.04999066]
[1769003385584,0.05106846,126.96,126.93,3.34707323]
[1769003385781,7.0952,126.98,126.93,3.34707323]
[1769003386892,0.0538767,126.97,126.93,3.34707323]
[1769003390484,9.21479482,126.99,126.93,10.44487323]
[1769003391786,7.0952,126.98,126.93,3.34707323]
[1769003392085,0.05889368,126.97,126.93,3.34707323]
[1769003402398,7.15469368,126.97,126.93,0.04999066]
[1769003405196,2.12029103,126.96,126.9,13.15124011]
[1769003405395,2.12029103,126.96,126.9,3.36714094]
[1769003405593,0.05889368,126.97,126.88,13.15124011]
[1769003405594,2.12029103,126.94,126.88,13.15124011]
[1769003405787,7.098,126.93,126.87,9.78409917]
[1769003405983,2.12029103,126.92,126.86,13.15124011]
[1769003406185,2.12029103,126.92,126.86,3.36714094]
[1769003406698,0.05303798,126.9,126.86,3.36714094]
[1769003406896,0.05303798,126.9,126.86,10.46894094]
[1769003407193,110.3914,126.96,126.86,3.36714094]
[1769003407400,2.12029103,126.95,126.87,3.36714094]
[1769003408095,2.12029103,126.93,126.87,3.36714094]
[1769003408596,0.05963783,126.91,126.87,3.36714094]
[1769003409391,0.05963783,126.91,126.88,0.05485153]
[1769003409789,9.21879103,126.93,126.88,3.42199247]
[1769003410700,7.0985,126.93,126.88,3.42199247]
[1769003411104,0.05988108,126.92,126.88,3.42199247]
[1769003417322,9.27877211,126.92,126.88,0.05485153]
[1769003417814,7.0993,126.91,126.88,0.05485153]
[1769003421720,2.18017211,126.92,126.88,0.05485153]
[1769003422522,2.18017211,126.92,126.84,10.10217635]
[1769003422720,2.12029103,126.92,126.84,10.10217635]
[1769003424017,0.05356694,126.89,126.84,10.10217635]
[1769003424523,0.05356694,126.89,126.84,2.99977635]
[1769003425624,7.15386694,126.89,126.84,2.99977635]
[1769003426017,0.05356694,126.89,126.84,2.99977635]
[1769003426914,7.1008,126.88,126.84,2.99977635]
[1769003430028,7.1013,126.87,126.84,2.99977635]
[1769003430431,7.1013,126.87,126.82,2.99977635]
[1769003431231,0.05448661,126.86,126.82,2.99977635]
[1769003432330,7.15648661,126.86,126.82,2.99977635]
[1769003436130,7.1027,126.85,126.8,2.99977635]
[1769003436928,7.15638661,126.86,126.8,2.99977635]
[1769003437932,0.05448661,126.86,126.81,2.99977635]
[1769003438334,0.05448661,126.86,126.82,3.0550769]
[1769003447636,7.15638661,126.86,126.82,3.0550769]
[1769003451449,0.05448661,126.86,126.83,3.35591729]
[1769003452744,2.12029103,126.89,126.83,3.35591729]
[1769003452941,7.1007,126.88,126.83,3.35591729]
[1769003454144,0.05323008,126.87,126.84,0.06043574]
[1769003457456,7.1007,126.88,126.84,3.41635303]
[1769003461461,148.2927,126.92,126.85,3.42722314]
[1769003461462,2.12358563,126.92,126.85,3.42722314]
[1769003461650,110.4098,126.94,126.85,3.42722314]
[1769003461854,2.12358563,126.93,126.85,3.42722314]
[1769003462055,112.52638563,126.95,126.86,5.55080877]
[1769003462260,112.52638563,126.95,126.87,3.42722314]
[1769003462657,112.52638563,126.95,126.9,0.04985298]
[1769003463561,7.0983,126.93,126.9,0.04985298]
[1769003463761,2.12358563,126.93,126.9,0.04985298]
[1769003463962,2.12358563,126.93,126.88,3.42722314]
[1769003464964,7.0987,126.92,126.88,3.42722314]
[1769003465173,7.0987,126.92,126.89,0.05330972]
[1769003465566,7.15723242,126.92,126.89,0.05330972]
[1769003467862,2.12358563,126.95,126.89,3.48053286]
[1769003468464,2.12358563,126.96,126.89,3.48053286]
[1769003468770,2.12358563,126.96,126.89,3.42722314]
[1769003469067,7.0969,126.95,126.91,0.05756874]
[1769003469366,0.05275713,126.94,126.91,0.05756874]
[1769003471264,2.17634276,126.94,126.87,3.42722314]
[1769003471567,2.12358563,126.93,126.87,3.42722314]
[1769003472476,2.12358563,126.93,126.89,0.05913032]
[1769003473070,2.12358563,126.91,126.87,3.42722314]
[1769003474578,0.05807947,126.9,126.85,3.42722314]
[1769003475071,0.05807947,126.9,126.86,0.04988842]
[1769003475469,7.15827947,126.9,126.86,0.04988842]
[1769003479085,0.05807947,126.9,126.86,0.04988842]
[1769003479276,2.12358563,126.89,126.86,0.04988842]
[1769003479781,2.12358563,126.87,126.79,3.168638]
[1769003480385,7.1019,126.86,126.8,3.168638]
[1769003480977,0.05913445,126.84,126.8,3.168638]
[1769003485986,0.05913445,126.84,126.8,10.273738]
[1769003486188,7.1019,126.86,126.81,3.168638]
[1769003486680,7.1025,126.85,126.81,3.168638]
[1769003488488,0.05996935,126.84,126.82,0.05116446]
[1769003488677,0.05996935,126.84,126.78,3.168638]
[1769003488879,0.05996935,126.84,126.79,3.168638]
[1769003489485,0.05996935,126.84,126.81,3.168638]
[1769003489785,7.1018,126.86,126.81,3.168638]
[1769003490486,7.1024,126.85,126.81,3.168638]
[1769003491387,0.05881348,126.84,126.82,0.05825124]
[1769003492788,7.16191348,126.84,126.79,3.168638]
[1769003493088,0.05881348,126.84,126.79,3.168638]
[1769003496385,0.05881348,126.84,126.8,7.1052]
[1769003496690,0.05881348,126.84,126.81,3.168638]
[1769003498187,2.12358563,126.87,126.82,3.168638]
[1769003498787,7.1013,126.88,126.82,3.168638]
[1769003499290,0.05397081,126.86,126.84,0.0513912]
[1769003499681,2.12358563,126.89,126.84,3.2200292]
[1769003499888,2.12358563,126.91,126.85,3.168638]
[1769003500083,2.12358563,126.93,126.85,3.168638]
[1769003500687,9.22198563,126.93,126.87,3.168638]
[1769003500888,0.05437187,126.9,126.88,0.05171861]
[1769003503282,0.05437187,126.9,126.85,5.29222363]
[1769003503487,2.12358563,126.91,126.83,3.168638]
[1769003504491,7.0998,126.9,126.85,3.168638]
[1769003505387,7.0998,126.9,126.86,0.05604084]
[1769003505583,0.05790304,126.89,126.86,0.05604084]
[1769003506588,0.05790304,126.89,126.86,3.50430635]
[1769003510792,7.0989,126.92,126.86,3.50430635]
[1769003510992,2.12358563,126.93,126.87,3.44826551]
[1769003511194,2.12358563,126.95,126.88,3.44826551]
[1769003511992,2.12358563,126.95,126.9,0.0594185]
[1769003512297,7.0974,126.94,126.9,0.0594185]
[1769003513594,23.67,126.98,126.91,5.57185114]
[1769003513793,2.12358563,127.0,126.92,3.44826551]
[1769003514197,2.12358563,127.0,126.95,0.0599695]
[1769003514901,0.05164311,126.99,126.95,0.0599695]
[1769003515101,0.05164311,126.99,126.95,3.50823501]
[1769003520095,0.05164311,126.99,126.95,0.0599695]
[1769003523001,7.14624311,126.99,126.95,0.0599695]
[1769003524006,7.0953,126.98,126.93,3.20534205]
[1769003524397,2.17124737,126.99,126.93,3.20534205]
[1769003524596,7.0952,126.98,126.93,3.20534205]
[1769003525211,7.0952,126.98,126.94,0.05619076]
[1769003534608,7.14624311,126.99,126.94,3.26153281]
[1769003535912,9.26584737,126.99,126.94,3.26153281]
[1769003536312,7.0952,126.98,126.94,0.05619076]
[1769003539008,2.11960426,126.97,126.9,10.44969196]
[1769003539309,2.11960426,126.97,126.9,3.35009196]
[1769003540013,7.0963,126.96,126.9,3.35009196]
[1769003540714,0.05950633,126.94,126.9,3.35009196]
[1769003547732,2.11960426,126.93,126.88,10.45029196]
[1769003548320,2.11960426,126.93,126.88,3.35009196]
[1769003548516,7.15710633,126.94,126.88,3.35009196]
[1769003548720,0.05950633,126.94,126.9,3.35009196]
[1769003550919,7.0962,126.97,126.91,3.35009196]
[1769003552217,7.0962,126.97,126.93,0.05037343]
[1769003552420,0.05835277,126.95,126.93,0.05037343]
[1769003553424,7.0962,126.97,126.93,3.40046539]
[1769003557722,7.0951,126.99,126.93,3.40046539]
[1769003558131,2.11960426,127.0,126.93,3.40046539]
[1769003559129,2.11960426,127.0,126.95,3.35009196]
[1769003559424,9.21360426,127.0,126.95,3.35009196]
[1769003559729,9.21360426,127.0,126.96,0.05457632]
[1769003561122,7.0947,126.99,126.93,3.35009196]
[1769003562830,0.05209322,126.97,126.95,0.05354707]
[1769003564432,2.11960426,127.01,126.95,0.05354707]
[1769003565334,7.0942,127.0,126.95,3.52597492]
[1769003566733,7.0933,127.02,126.96,3.47242785]
[1769003567234,7.0933,127.02,126.98,0.05171981]
[1769003567934,0.05804103,127.01,126.98,3.52414766]
[1769003568130,7.0924,127.03,126.98,3.52414766]
[1769003571637,2.11960426,127.05,126.98,3.52414766]
[1769003571638,7.0918,127.04,126.98,3.52414766]
[1769003572731,2.11960426,127.03,126.98,3.52414766]
[1769003573132,7.0918,127.04,126.98,3.52414766]
[1769003575238,7.0918,127.04,126.99,3.47242785]
[1769003575439,2.11960426,127.05,126.99,3.47242785]
[1769003575628,7.0912,127.06,126.99,3.47242785]
[1769003575840,7.0912,127.06,127.0,3.47242785]
[1769003576140,7.0912,127.06,127.01,0.05373801]
[1769003581245,9.21080426,127.06,127.01,0.05373801]
[1769003582729,297.92,127.12,127.01,0.05373801]
[1769003582730,9.20960426,127.08,127.01,3.34884787]
[1769003582944,9.2070359,127.08,127.01,3.34884787]
[1769003583138,0.04963343,127.06,127.01,3.29510986]
[1769003583442,0.04963343,127.06,127.03,0.05986119]
[1769003585837,9.25736933,127.06,126.99,10.38920986]
[1769003586443,7.0913,127.05,126.99,10.38920986]
[1769003586637,7.0913,127.05,127.0,3.29510986]
[1769003587142,7.0913,127.05,127.01,0.05506215]
[1769003589445,2.1170359,127.06,127.01,0.05506215]
[1769003589642,2.1170359,127.08,127.01,3.35017201]
[1769003590041,7.0901,127.07,127.01,3.35017201]
[1769003595048,0.05835246,127.05,127.01,0.05506215]
[1769003598240,0.05835246,127.05,127.01,3.30402895]
[1769003599053,0.05835246,127.05,127.01,10.39742895]
[1769003600655,110.2726,127.1,127.01,10.39742895]
[1769003600656,2.1170359,127.08,127.02,10.3417668]
[1769003601654,2.1170359,127.08,127.03,7.0922]
[1769003601850,2.1170359,127.1,127.04,0.0526689]
[1769003602157,2.1170359,127.1,127.03,10.3411668]
[1769003602344,2.1170359,127.1,127.06,0.05591826]
[1769003602949,7.089,127.09,127.06,0.05591826]
[1769003603151,2.1170359,127.1,127.06,0.05591826]
[1769003603550,9.2048359,127.12,127.06,0.05591826]
[1769003603752,9.2048359,127.12,127.06,3.30488506]
[1769003604354,7.0869,127.13,127.06,3.30488506]
[1769003604651,7.0869,127.13,127.08,0.06002095]
[1769003605859,23.67,127.15,127.08,0.06002095]
[1769003605860,9.2044359,127.12,127.08,0.06002095]
[1769003607770,0.05028058,127.11,127.08,0.06002095]
[1769003610668,7.13838058,127.11,127.02,11.90113507]
[1769003610857,2.1170359,127.1,127.04,3.2489668]
[1769003611172,2.1170359,127.08,127.02,10.3417668]
[1769003611358,9.2067359,127.08,127.02,3.2489668]
[1769003611861,9.2067359,127.08,127.04,0.05920217]
[1769003613769,7.0897,127.08,127.04,3.30816897]
[1769003613964,9.2059359,127.1,127.04,3.30816897]
[1769003614463,7.0889,127.1,127.04,3.30816897]
[1769003614870,7.0889,127.1,127.04,10.39966897]
[1769003615057,7.0889,127.1,127.05,3.2489668]
[1769003615864,7.0879,127.11,127.05,10.3400668]
[1769003616064,7.0879,127.11,127.06,3.2489668]
[1769003616461,7.0879,127.11,127.07,0.05529464]
[1769003618173,9.2042359,127.13,127.07,0.05529464]
[1769003618562,9.2042359,127.13,127.06,10.3395668]
[1769003618762,9.2042359,127.13,127.09,0.05538342]
[1769003618967,0.05113024,127.11,127.09,0.05538342]
[1769003622472,9.2029359,127.15,127.09,3.30435022]
[1769003622673,2.1170359,127.15,127.09,3.30435022]
[1769003622980,2.1170359,127.17,127.11,3.2489668]
[1769003623673,2.1170359,127.17,127.13,0.05147619]
[1769003623867,0.05922312,127.15,127.13,0.05147619]
[1769003624074,2.1170359,127.17,127.13,3.30044299]
[1769003624369,2.1170359,127.19,127.13,3.30044299]
[1769003624770,9.1997359,127.21,127.13,3.2489668]
[1769003625475,7.083,127.2,127.16,0.05307845]
[1769003625669,2.1170359,127.21,127.16,0.05307845]
[1769003626280,9.2008359,127.19,127.12,3.40421579]
[1769003627470,9.2008359,127.19,127.14,0.05863012]
[1769003631277,9.2008359,127.19,127.12,3.40421579]
[1769003631278,2.1170359,127.17,127.12,3.40421579]
[1769003632581,0.05044232,127.16,127.13,0.05640433]
[1769003633974,7.0844,127.18,127.13,3.46062012]
[1769003636985,7.0846,127.17,127.13,0.05640433]
[1769003638379,7.0846,127.17,127.09,3.39385124]
[1769003638380,7.0851,127.16,127.09,3.39385124]
[1769003639584,7.0851,127.16,127.11,0.0551152]
[1769003639980,7.0851,127.16,127.11,3.44896644]
[1769003640588,9.2015359,127.17,127.11,3.44896644]
[1769003641490,0.05178743,127.15,127.11,3.44896644]
[1769003642691,2.1170359,127.19,127.11,3.44896644]
[1769003642891,2.11347833,127.19,127.11,3.44896644]
[1769003643089,2.11347833,127.2,127.13,3.39385124]
[1769003643786,9.19687833,127.2,127.13,10.48055124]
[1769003643991,9.19687833,127.2,127.15,0.05437759]
[1769003644192,7.0834,127.2,127.15,0.05437759]
[1769003646294,7.0834,127.2,127.15,3.44822883]
[1769003646595,7.0823,127.21,127.15,3.44822883]
[1769003646986,2.11347833,127.21,127.15,3.44822883]
[1769003647891,7.083,127.2,127.15,3.44822883]
[1769003648189,110.1526,127.23,127.16,3.39385124]
[1769003648190,2.11347833,127.23,127.16,3.39385124]
[1769003648696,2.11347833,127.23,127.18,0.05558062]
[1769003648997,0.05249695,127.21,127.18,0.05558062]
[1769003649199,7.0812,127.23,127.18,3.44943186]
[1769003650394,9.19467833,127.23,127.18,3.44943186]
[1769003651607,2.11347833,127.23,127.18,3.44943186]
[1769003652709,9.19467833,127.23,127.18,3.44943186]
[1769003653611,7.0819,127.22,127.18,0.05558062]
[1769003654915,9.19437833,127.24,127.18,3.44943186]
[1769003655311,7.0801,127.25,127.19,3.28925159]
[1769003655914,7.0801,127.25,127.21,0.05810875]
[1769003657921,7.0795,127.26,127.21,0.05810875]
[1769003658217,2.11347833,127.28,127.21,3.34736034]
[1769003658721,7.079,127.27,127.21,3.34736034]
[1769003659214,2.11347833,127.28,127.21,10.42956034]
[1769003659922,7.079,127.27,127.21,10.42956034]
[1769003660114,0.05246118,127.26,127.22,3.28925159]
[1769003660817,2.11347833,127.3,127.23,7.0811]
[1769003661022,2.11347833,127.3,127.24,3.28925159]
[1769003662016,9.19077833,127.3,127.26,0.06042152]
[1769003663422,2.11347833,127.32,127.26,3.34967311]
[1769003663622,2.11347833,127.33,127.26,3.34967311]
[1769003663821,2.11347833,127.33,127.26,3.28925159]
[1769003664012,0.0496296,127.31,127.28,0.05988087]
[1769003664920,7.1264296,127.31,127.28,0.05988087]
[1769003665320,7.1264296,127.31,127.24,7.0801]
[1769003665321,7.0773,127.3,127.24,7.0801]
[1769003665522,2.16310793,127.31,127.24,10.36935159]
[1769003665721,2.11347833,127.31,127.24,10.36935159]
[1769003665920,9.19027833,127.31,127.24,10.36935159]
[1769003666120,2.11347833,127.32,127.25,10.36925159]
[1769003666314,2.11347833,127.32,127.25,3.28925159]
[1769003666719,0.05871651,127.3,127.27,0.0496281]
[1769003668213,0.05871651,127.3,127.25,3.28925159]
[1769003668214,2.17219484,127.3,127.25,3.28925159]
[1769003669024,0.05871651,127.3,127.25,3.28925159]
[1769003669528,0.05871651,127.3,127.26,0.05810936]
[1769003671130,2.17219484,127.3,127.26,0.05810936]
[1769003671336,2.17219484,127.3,127.23,3.28925159]
[1769003671542,9.24959484,127.3,127.23,10.37045159]
[1769003671832,2.11347833,127.28,127.23,3.28925159]
[1769003672024,2.11347833,127.28,127.2,3.28925159]
[1769003672426,9.19197833,127.28,127.21,7.0819]
[1769003672729,0.05610398,127.25,127.23,0.05298808]
[1769003673522,0.05610398,127.25,127.19,10.37215159]
[1769003673832,0.05610398,127.25,127.2,3.28925159]
[1769003674628,0.05610398,127.25,127.21,0.05326733]
[1769003675128,0.05610398,127.25,127.21,3.34251892]
[1769003675534,2.11347833,127.27,127.21,3.34251892]
[1769003675731,2.11347833,127.29,127.21,3.34251892]
[1769003675930,9.19147833,127.29,127.22,10.37095159]
[1769003676638,9.19147833,127.29,127.24,0.05764319]
[1769003677632,7.0784,127.28,127.24,0.05764319]
[1769003680440,2.11347833,127.27,127.2,10.37155159]
[1769003680639,2.11347833,127.27,127.21,3.28925159]
[1769003680832,2.11347833,127.27,127.21,10.37155159]
[1769003683139,0.05318182,127.25,127.23,0.05980226]
[1769003684042,2.11347833,127.27,127.23,0.05980226]
[1769003686444,9.19267833,127.27,127.23,0.05980226]
[1769003687535,7.0795,127.26,127.23,0.05980226]
[1769003687747,2.11347833,127.25,127.2,7.0828]
[1769003688343,2.11347833,127.25,127.2,10.25570273]
[1769003691446,0.05750127,127.24,127.21,0.05040566]
[1769003691647,2.11347833,127.23,127.18,3.17290273]
[1769003692049,2.11347833,127.23,127.18,10.25680273]
[1769003692439,9.19467833,127.23,127.18,3.17290273]
[1769003692648,2.11347833,127.23,127.18,3.17290273]
[1769003693752,0.05750127,127.24,127.18,3.17290273]
[1769003694948,7.13820127,127.24,127.18,10.25680273]
[1769003696653,7.0812,127.23,127.18,3.17290273]
[1769003697459,7.0817,127.22,127.16,3.17290273]
[1769003697954,0.0497309,127.2,127.16,3.17290273]
[1769003699357,0.0497309,127.2,127.14,13.12135756]
[1769003699564,7.1326309,127.2,127.14,3.36788973]
[1769003700253,2.11347833,127.19,127.12,310.38135756]
[1769003700454,2.11347833,127.19,127.12,3.36788973]
[1769003700654,2.11347833,127.19,127.14,0.05341651]
[1769003700854,0.05345517,127.17,127.14,0.05341651]
[1769003701256,7.13815517,127.17,127.14,0.05341651]
[1769003701852,0.05345517,127.17,127.14,0.05341651]
[1769003702867,7.13805517,127.17,127.14,0.05341651]
[1769003703672,7.0852,127.16,127.1,3.36788973]
[1769003704555,2.11347833,127.17,127.1,3.36788973]
[1769003704760,9.19917833,127.15,127.08,10.45728973]
[1769003705063,0.05051231,127.14,127.09,3.36788973]
[1769003705263,0.05051231,127.14,127.1,3.41978823]
[1769003713160,2.16540228,127.14,127.1,0.0518985]
[1769003714970,7.0868,127.13,127.1,0.0518985]
[1769003715162,7.0868,127.13,127.08,3.36788973]
[1769003715564,2.11488997,127.12,127.08,3.36788973]
[1769003716467,0.0574547,127.11,127.09,0.05708028]
[1769003717370,2.11488997,127.16,127.09,3.25518682]
[1769003717774,2.11488997,127.14,127.09,3.25518682]
[1769003718164,2.11488997,127.14,127.09,3.19810654]
[1769003718468,0.05007423,127.13,127.09,3.19810654]
[1769003718672,0.05007423,127.13,127.1,0.05110659]
[1769003719668,7.13687423,127.13,127.1,0.05110659]
[1769003720074,7.13687423,127.13,127.09,3.19810654]
[1769003721777,7.0873,127.12,127.09,3.19810654]
[1769003722070,7.0873,127.12,126.98,110.3619]
[1769003722071,0.05007423,127.13,127.07,3.19810654]
[1769003722277,7.089,127.09,127.05,3.19810654]
[1769003722874,2.11488997,127.12,127.05,3.19810654]
[1769003722875,7.0884,127.1,127.05,3.19810654]
[1769003724275,7.0879,127.11,127.06,3.19810654]
[1769003724479,2.11488997,127.14,127.06,3.19810654]
[1769003724871,2.11488997,127.14,127.08,3.19810654]
[1769003725475,0.0549903,127.12,127.08,3.19810654]
[1769003726981,7.0862,127.14,127.09,3.19810654]
[1769003728184,0.06018189,127.13,127.1,0.05031714]
[1769003728481,0.06018189,127.13,127.1,3.24842368]
[1769003730685,7.0848,127.17,127.12,5.31299651]
[1769003730876,2.11488997,127.2,127.13,3.19810654]
[1769003731374,7.0839,127.19,127.13,3.19810654]
[1769003731581,2.11488997,127.2,127.13,3.19810654]